bitfinex/quotes_ETHUSD_20260103
["timestamp","ask_amount","ask_price","bid_price","bid_amount"]
[1767458177365,1e-08,3106.8,3106.4,0.0008004]
[1767458177538,1e-08,3106.8,3106.4,3.21996084]
[1767458177735,1e-08,3106.8,3106.5,0.88079101]
[1767458178366,0.002,3107.1,3106.5,3.24950181]
[1767458178873,2.43952662,3107.8,3106.8,0.05]
[1767458179067,2.43952662,3107.6,3106.8,0.00080048]
[1767458179944,2.43952662,3107.6,3106.8,2.36951128]
[1767458180149,2.43952662,3107.5,3106.8,3.25025305]
[1767458180570,2.43952662,3107.5,3106.9,2.3687108]
[1767458181065,0.00080136,3107.7,3106.9,2.3687108]
[1767458181066,5.65817727,3107.7,3106.9,2.3687108]
[1767458181676,2.43952662,3107.6,3106.8,0.88154225]
[1767458181869,2.43952662,3107.6,3106.9,5.58735317]
[1767458182059,2.43952662,3107.5,3106.8,0.88154225]
[1767458182367,2.43952662,3107.5,3106.8,0.00080048]
[1767458183345,2.43952662,3107.5,3106.8,3.21954408]
[1767458184068,3.21812447,3107.4,3106.8,0.00080048]
[1767458184442,2.43952662,3107.3,3106.8,0.00080048]
[1767458186583,2.43952662,3107.1,3106.8,0.00080048]
[1767458186766,2.43952662,3106.9,3106.4,0.0008004]
[1767458188060,2.43952662,3106.9,3106.4,3.2199541]
[1767458188567,2.43952662,3106.9,3106.4,0.0008004]
[1767458190572,2.51962256,3107.0,3106.4,0.0008004]
[1767458191979,2.51962256,3106.9,3106.4,0.0008004]
[1767458193775,2.51962256,3106.8,3106.4,0.0008004]
[1767458196282,5.73838844,3106.8,3106.4,0.0008004]
[1767458196782,2.51962256,3106.7,3106.4,0.0008004]
[1767458198085,5.73857575,3106.6,3106.4,0.0008004]
[1767458198572,2.51962256,3106.5,3106.4,0.0008004]
[1767458198774,5.7385181,3106.7,3106.4,0.0008004]
[1767458198969,6.40195612,3106.7,3106.4,0.0008004]
[1767458200793,2.51962256,3106.6,3106.4,0.0008004]
[1767458202402,5.73867937,3106.5,3106.4,0.0018004]
[1767458202588,2.51962256,3106.5,3106.4,0.0018004]
[1767458204786,5.73867937,3106.5,3106.4,0.0018004]
[1767458204976,2.51962256,3106.5,3106.4,0.0018004]
[1767458205180,3.21905681,3106.5,3106.4,0.0018004]
[1767458205994,3.2189609,3106.6,3106.4,0.0018004]
[1767458207096,3.47106026,3106.7,3106.4,0.0018004]
[1767458209560,6.68995826,3106.7,3106.4,0.0018004]
[1767458210867,9.20958082,3106.7,3106.4,0.0018004]
[1767458211270,9.20958082,3106.7,3106.1,2.36846153]
[1767458212499,9.20958082,3106.7,3106.4,0.001]
[1767458212688,0.92123812,3106.6,3106.4,0.001]
[1767458213503,3.21905681,3106.5,3106.4,0.001]
[1767458214507,3.21905681,3106.5,3106.0,0.00080024]
[1767458214806,8.95773618,3106.5,3106.0,0.00080024]
[1767458215104,6.43811362,3106.5,3106.0,0.00080024]
[1767458215310,7.45122728,3106.5,3106.0,0.00080024]
[1767458215603,2.5204228,3106.4,3105.7,0.51819684]
[1767458218297,3.21926407,3106.3,3105.7,0.51819684]
[1767458218993,8.9581507,3106.3,3105.6,0.00080024]
[1767458219679,2.52443814,3106.2,3105.6,0.00080024]
[1767458221601,0.00080024,3106.4,3105.6,0.54022283]
[1767458221801,5.7433544,3106.7,3106.0,0.00080032]
[1767458222901,3.21903866,3106.6,3106.0,0.00080032]
[1767458223303,3.21903866,3106.6,3106.0,0.54600388]
[1767458225219,6.43807732,3106.6,3106.0,0.54600388]
[1767458225706,8.96251546,3106.6,3106.0,0.54600388]
[1767458226503,8.96251546,3106.6,3106.0,0.00080032]
[1767458230918,2.52443814,3106.5,3106.0,0.00080032]
[1767458231996,3.21916044,3106.4,3106.0,0.00080032]
[1767458232320,6.43832088,3106.4,3106.0,0.00080032]
[1767458232495,2.52443814,3106.3,3106.0,0.00080032]
[1767458232691,2.52443814,3106.3,3106.0,0.00180032]
[1767458235626,5.74371538,3106.3,3106.0,0.00180032]
[1767458236731,2.52443814,3106.2,3106.0,0.00180032]
[1767458238496,5.74380893,3106.2,3106.0,0.00180032]
[1767458238826,3.21929401,3106.3,3106.0,0.00180032]
[1767458240598,5.74373215,3106.3,3106.0,0.00180032]
[1767458244433,2.52443814,3106.2,3106.0,0.00180032]
[1767458244625,2.52443814,3106.2,3105.6,0.00080024]
[1767458244932,2.52443814,3106.2,3105.6,3.22078671]
[1767458245819,2.52443814,3106.2,3105.7,3.21987163]
[1767458246917,5.74381639,3106.2,3105.6,3.22074492]
[1767458247444,5.69381639,3106.2,3105.6,3.22074492]
[1767458248233,2.47443814,3106.2,3105.6,3.22074492]
[1767458250518,2.47443814,3106.2,3105.6,6.44073461]
[1767458250724,2.47443814,3106.2,3105.6,7.24021608]
[1767458254159,2.47443814,3106.2,3105.6,7.91392462]
[1767458254952,2.53962889,3106.4,3105.7,0.67568734]
[1767458255117,0.002,3106.6,3106.1,0.67568734]
[1767458256045,0.002,3106.6,3106.2,7.11637246]
[1767458256347,0.002,3106.6,3106.4,0.67763704]
[1767458256522,0.002,3107.1,3106.4,0.67763704]
[1767458256730,0.002,3107.1,3106.6,0.67763704]
[1767458257427,0.002,3107.1,3106.5,3.61886782]
[1767458257628,0.002,3107.1,3106.6,0.67955373]
[1767458257829,0.002,3107.1,3106.7,0.36188678]
[1767458258359,0.002,3107.1,3106.8,3.21874597]
[1767458258562,0.00080048,3107.2,3106.9,0.68145341]
[1767458258717,0.002,3107.5,3106.9,0.68145341]
[1767458260563,0.002,3107.5,3107.1,0.68009132]
[1767458260724,0.002,3107.5,3107.2,0.71171689]
[1767458262058,0.00280112,3107.9,3107.5,0.0008012]
[1767458262059,2.53900432,3107.9,3107.5,0.0008012]
[1767458262225,0.00017575,3107.9,3107.5,0.0008012]
[1767458262648,0.00017575,3107.9,3107.5,6.43684302]
[1767458262942,0.00017575,3107.9,3107.6,0.70935122]
[1767458264421,0.00017575,3107.9,3107.5,3.21882211]
[1767458264849,0.00017575,3107.9,3107.6,0.67462825]
[1767458265063,2.54162945,3108.1,3107.5,0.0008012]
[1767458267057,0.002,3108.3,3107.5,0.0008012]
[1767458267058,2.54082857,3108.3,3107.7,0.67328672]
[1767458267227,2.54082857,3108.3,3107.7,0.67408768]
[1767458267427,2.54082857,3108.3,3107.7,1.03550798]
[1767458268254,2.54082857,3108.3,3107.7,0.00080096]
[1767458268439,2.53882857,3108.1,3107.7,0.00080096]
[1767458269167,2.53882857,3108.0,3107.7,0.00080096]
[1767458269822,2.53882857,3108.0,3107.5,0.0008012]
[1767458270759,3.21760674,3107.9,3107.5,0.0008012]
[1767458270966,2.53882857,3107.8,3107.5,0.0008012]
[1767458271259,0.8976636,3107.9,3107.5,0.0008012]
[1767458271558,2.53882857,3108.0,3107.5,0.0008012]
[1767458271925,0.00280096,3108.1,3107.5,1.5149353]
[1767458272552,2.54162953,3108.1,3107.5,0.45130628]
[1767458272753,2.54162953,3108.1,3107.5,0.0008012]
[1767458273257,2.54162953,3108.1,3107.5,3.21882211]
[1767458274332,2.54162953,3108.1,3107.5,6.43684302]
[1767458274530,2.54162953,3108.1,3107.5,7.28084302]
[1767458274837,2.54162953,3108.1,3107.6,0.7280843]
[1767458276360,2.54162953,3108.1,3107.5,0.8448012]
[1767458276661,2.54162953,3108.1,3107.6,3.21789292]
[1767458276860,2.54162953,3108.1,3107.5,0.0008012]
[1767458277235,2.54162953,3108.1,3107.6,3.21790854]
[1767458277646,2.53882857,3108.0,3107.5,3.21879772]
[1767458277957,2.53882857,3108.0,3107.6,3.21790961]
[1767458278258,2.53882857,3108.0,3107.5,0.0018012]
[1767458280449,3.11472436,3108.0,3107.5,0.0018012]
[1767458280654,2.45541028,3107.9,3107.3,0.00080144]
[1767458280857,2.45621148,3107.9,3107.3,0.00080144]
[1767458284248,2.45541028,3107.8,3107.3,0.00080144]
[1767458285668,2.45541028,3107.6,3107.3,0.00080144]
[1767458285866,2.45541028,3107.4,3107.3,0.00080144]
[1767458286784,2.45541028,3107.4,3107.3,0.00180144]
[1767458287152,2.45541028,3107.4,3106.8,0.00080056]
[1767458287852,2.45541028,3107.3,3106.8,0.00080056]
[1767458290597,2.45541028,3107.2,3106.8,0.00080056]
[1767458291906,3.02277478,3107.2,3106.8,0.00080056]
[1767458292066,2.45541028,3107.1,3106.8,0.00080056]
[1767458293402,0.0008012,3107.9,3106.9,0.844]
[1767458293564,2.45684365,3108.0,3107.5,0.00080128]
[1767458293768,2.45541028,3107.9,3107.5,0.00080128]
[1767458294182,0.00143337,3108.0,3107.5,0.00080128]
[1767458295497,2.45684365,3108.0,3107.5,0.00080128]
[1767458295665,2.45541028,3107.9,3107.5,0.00080128]
[1767458297898,2.45741028,3107.9,3107.5,0.00080128]
[1767458298202,2.45541028,3107.8,3107.5,0.00080128]
[1767458305994,0.002,3107.9,3107.5,0.00080128]
[1767458306215,0.002,3107.9,3107.5,0.65440914]
[1767458307709,1e-08,3108.0,3107.6,7.08902709]
[1767458307917,0.002,3108.3,3107.8,0.6527682]
[1767458308812,0.002,3108.4,3107.8,0.6527682]
[1767458309388,2.45741028,3108.4,3107.8,0.6527682]
[1767458310304,2.45741028,3108.4,3107.9,6.43521348]
[1767458311180,0.8975007,3108.5,3108.0,2.63782708]
[1767458311601,2.47748574,3108.9,3108.0,2.63782708]
[1767458312321,2.47748574,3108.9,3108.1,9.07262646]
[1767458312989,2.47748574,3108.8,3108.1,9.07262646]
[1767458314189,0.00080112,3109.0,3108.2,2.63782708]
[1767458314716,0.97566306,3109.1,3108.6,0.0008012]
[1767458314886,1.47945863,3109.1,3108.6,0.0008012]
[1767458315085,2.47748574,3109.0,3108.6,0.0008012]
[1767458315802,0.50379557,3109.1,3108.6,0.0008012]
[1767458316900,2.98128131,3109.1,3108.6,0.0008012]
[1767458318212,2.47748574,3109.0,3108.6,0.0008012]
[1767458318416,2.77561387,3109.0,3108.6,0.0008012]
[1767458318624,2.77561387,3109.0,3108.2,3.2180973]
[1767458318625,2.47748574,3108.9,3108.2,3.2180973]
[1767458318829,2.47748574,3108.9,3108.2,6.43539348]
[1767458319026,2.47748574,3108.9,3108.2,3.2180973]
[1767458319189,2.47748574,3108.9,3108.2,6.43539348]
[1767458319394,3.07676778,3108.9,3108.2,6.43539348]
[1767458320098,3.07676778,3108.9,3108.3,2.63782708]
[1767458320299,2.47748574,3108.9,3108.3,2.63782708]
[1767458320496,2.47748574,3108.9,3108.4,3.21708917]
[1767458320699,0.0008012,3109.0,3108.4,3.21708917]
[1767458321295,0.0008012,3109.0,3108.4,5.85491625]
[1767458321491,0.0008012,3109.0,3108.4,9.07200542]
[1767458322228,2.47828694,3109.0,3108.4,5.85491625]
[1767458322725,2.47828694,3109.0,3108.4,2.63782708]
[1767458323111,0.0008012,3109.0,3108.4,2.9016899]
[1767458324704,0.0008012,3109.0,3108.5,6.43397136]
[1767458325433,0.0008012,3109.0,3108.5,9.07179844]
[1767458325936,2.47828694,3109.0,3108.5,3.21698568]
[1767458326439,2.47828694,3109.0,3108.5,6.43397136]
[1767458328223,2.47828694,3109.0,3108.5,3.21698568]
[1767458328740,2.47748574,3108.9,3108.4,3.21705492]
[1767458329315,2.47748574,3108.9,3108.4,6.43414409]
[1767458329517,0.0008012,3109.0,3108.4,6.43414409]
[1767458332454,2.47828694,3109.0,3108.4,6.43414409]
[1767458333763,2.47828694,3109.0,3108.2,0.00080112]
[1767458333919,2.47828694,3109.0,3108.2,3.54608868]
[1767458336529,2.47748574,3108.9,3108.3,3.21719267]
[1767458337043,2.47748574,3108.9,3108.4,0.001]
[1767458341656,5.69406971,3108.9,3108.4,0.001]
[1767458341824,3.12156652,3108.8,3108.4,0.001]
[1767458343740,2.55187943,3108.7,3108.4,0.001]
[1767458344649,2.55187943,3108.7,3108.1,0.001]
[1767458344825,2.55187943,3108.5,3108.1,0.001]
[1767458345264,2.55187943,3108.5,3107.7,0.70978388]
[1767458345265,2.55187943,3108.5,3107.7,0.00080104]
[1767458345554,0.25526806,3108.4,3107.8,2.4701428]
[1767458345718,2.55187943,3108.5,3107.9,3.21760674]
[1767458345922,5.76959585,3108.6,3107.9,5.68774954]
[1767458346149,2.55187943,3108.5,3107.9,5.68774954]
[1767458346345,2.55187943,3108.5,3107.9,3.21760674]
[1767458346860,2.55187943,3108.5,3107.8,3.21768462]
[1767458347160,3.53493655,3108.5,3107.8,3.21768462]
[1767458347739,6.75200483,3108.5,3107.8,2.4701428]
[1767458348448,3.53493655,3108.5,3107.8,2.4701428]
[1767458348754,3.53493655,3108.5,3108.4,0.001]
[1767458348954,0.98305712,3108.5,3108.4,0.001]
[1767458349260,0.00080112,3108.6,3108.4,0.001]
[1767458350553,0.00080112,3108.6,3108.2,3.21729618]
[1767458350554,2.55268055,3108.6,3107.7,0.00080104]
[1767458350756,2.55268055,3108.6,3107.8,3.21764855]
[1767458350956,2.55268055,3108.6,3107.7,3.2185843]
[1767458351138,2.55268055,3108.6,3107.7,0.00080104]
[1767458351336,2.55187943,3108.4,3107.7,3.21860357]
[1767458351532,2.55187943,3108.4,3107.7,0.00080104]
[1767458351889,2.55187943,3108.4,3107.7,5.68869713]
[1767458352560,5.76900196,3108.4,3107.8,3.2176948]
[1767458352763,2.55187943,3108.3,3107.7,5.6887158]
[1767458354553,5.76907736,3108.3,3107.7,5.6887158]
[1767458355577,2.55187943,3108.2,3107.7,0.00080104]
[1767458356285,2.55187943,3108.2,3107.7,3.21861188]
[1767458356471,4.2434703,3108.3,3107.7,3.21861188]
[1767458357192,4.2434703,3108.3,3107.7,3.21860696]
[1767458357544,4.2434703,3108.3,3107.7,0.00080104]
[1767458358277,1.00124542,3108.2,3107.7,0.00080104]
[1767458359762,5.76927912,3108.1,3107.7,0.00080104]
[1767458359961,4.21858646,3108.2,3107.7,0.00080104]
[1767458370470,2.7555002,3108.1,3107.7,0.00080104]
[1767458370867,4.21858646,3108.2,3107.7,0.00080104]
[1767458371079,6.97408666,3108.2,3107.7,0.00080104]
[1767458371280,2.7555002,3108.1,3107.7,0.00080104]
[1767458372401,2.75630124,3108.1,3107.6,0.001]
[1767458372698,2.7555002,3108.0,3107.6,0.001]
[1767458372994,2.75630148,3107.9,3107.3,3.22001281]
[1767458373396,2.7555002,3107.8,3107.3,3.22001281]
[1767458373599,3.21843771,3107.9,3107.3,3.22001281]
[1767458373773,5.97393791,3107.9,3107.3,3.22001281]
[1767458373974,2.7555002,3107.8,3107.3,3.22001281]
[1767458374377,4.20740333,3107.9,3107.3,3.22001281]
[1767458374595,4.20740333,3107.9,3107.3,0.00180152]
[1767458374791,2.7555002,3107.8,3107.3,0.00180152]
[1767458375103,4.20740333,3107.9,3107.3,0.00180152]
[1767458375496,2.7555002,3107.8,3107.3,0.00180152]
[1767458375800,4.20740333,3107.9,3107.3,0.00180152]
[1767458376006,6.96290353,3107.9,3107.3,0.00180152]
[1767458376497,4.20740333,3107.9,3107.3,5.80326078]
[1767458376702,6.96290353,3107.9,3107.3,3.21998708]
[1767458376889,2.7555002,3107.8,3107.3,3.21998708]
[1767458377272,4.20740333,3107.9,3107.3,5.80326078]
[1767458377599,2.7555002,3107.8,3107.3,0.00180152]
[1767458377904,4.20740333,3107.9,3107.3,0.00180152]
[1767458378105,0.9897669,3107.9,3107.3,0.00180152]
[1767458378404,0.00080128,3107.9,3107.3,2.58507522]
[1767458378700,3.21841881,3107.9,3107.3,2.58507522]
[1767458379203,2.75630148,3107.9,3107.3,0.00180152]
[1767458379404,0.00080128,3107.9,3107.4,2.5832737]
[1767458379772,0.00080128,3107.9,3107.4,3.21803341]
[1767458379974,0.00080128,3107.9,3107.5,2.5832737]
[1767458380206,0.00080128,3107.9,3107.4,3.21803341]
[1767458380504,2.75630148,3107.9,3107.4,3.21803341]
[1767458380694,0.00080128,3107.9,3107.4,5.80130711]
[1767458381100,0.00080128,3107.9,3107.4,3.21803341]
[1767458381304,2.75630148,3107.9,3107.4,3.21803341]
[1767458381505,0.00080128,3107.9,3107.4,5.80130711]
[1767458381804,2.75630148,3107.9,3107.3,0.00180152]
[1767458381974,0.00080128,3107.9,3107.3,2.58507522]
[1767458382406,2.7555002,3107.8,3107.3,0.00180152]
[1767458382608,0.00280128,3107.9,3107.3,0.00180152]
[1767458382770,0.00280128,3107.9,3107.3,2.58507522]
[1767458383208,0.00280128,3107.9,3107.3,0.00180152]
[1767458383374,0.00280128,3107.9,3107.3,2.58507522]
[1767458383902,3.22040802,3107.9,3107.3,2.58507522]
[1767458384779,2.7555002,3107.8,3107.3,0.00180152]
[1767458385103,3.22040802,3107.9,3107.3,0.00180152]
[1767458385402,2.7555002,3107.8,3107.3,0.00180152]
[1767458385582,4.20957868,3107.9,3107.3,2.58507522]
[1767458385803,4.20957868,3107.9,3107.3,5.80327478]
[1767458386221,2.7555002,3107.8,3107.3,3.22000108]
[1767458386401,4.20957868,3107.9,3107.3,5.80327478]
[1767458386925,2.7555002,3107.8,3107.3,3.22000108]
[1767458387124,0.99197194,3107.9,3107.3,5.80327478]
[1767458387322,0.00280128,3107.9,3107.3,5.80327478]
[1767458387502,2.75830148,3107.9,3107.3,3.22000108]
[1767458387908,0.00280128,3107.9,3107.3,0.00180152]
[1767458388102,2.75830148,3107.9,3107.3,0.00180152]
[1767458388491,0.00280128,3107.9,3107.4,2.5832737]
[1767458388813,2.75830148,3107.9,3107.3,0.00180152]
[1767458389017,0.00280128,3107.9,3107.4,2.5832737]
[1767458389608,0.00280128,3107.9,3107.3,2.58507522]
[1767458390019,2.75830148,3107.9,3107.3,0.00180152]
[1767458390420,0.00280128,3107.9,3107.4,2.5832737]
[1767458390718,0.00280128,3107.9,3107.3,2.58507522]
[1767458390930,0.00280128,3107.9,3107.4,2.5832737]
[1767458391304,2.7555002,3107.8,3107.3,0.00180152]
[1767458391613,0.00280128,3107.9,3107.4,2.5832737]
[1767458391932,2.7555002,3107.8,3107.3,0.00180152]
[1767458392292,0.00280128,3107.9,3107.3,2.58507522]
[1767458392718,0.00280128,3107.9,3107.3,0.00180152]
[1767458392719,2.7555002,3107.8,3107.3,0.00180152]
[1767458392920,0.00280128,3107.9,3107.4,2.5832737]
[1767458393232,2.7555002,3107.8,3107.4,3.21803251]
[1767458393409,0.00280128,3107.9,3107.4,3.21803251]
[1767458393614,0.00280128,3107.9,3107.5,2.5832737]
[1767458393911,0.00280128,3107.9,3107.4,3.21803251]
[1767458393912,2.75830148,3107.9,3107.4,3.21803251]
[1767458394312,0.00280128,3107.9,3107.3,2.58507522]
[1767458395339,3.42571234,3107.9,3107.3,0.00180152]
[1767458395506,0.67021214,3107.9,3107.3,2.58507522]
[1767458396009,3.42571234,3107.9,3107.3,0.00180152]
[1767458396204,0.67021214,3107.9,3107.3,0.00180152]
[1767458396405,0.67021214,3107.9,3107.3,2.58507522]
[1767458396630,2.7555002,3107.8,3107.3,0.00180152]
[1767458396831,0.00280128,3107.9,3107.4,2.5832737]
[1767458397219,2.75830148,3107.9,3107.3,0.00180152]
[1767458397620,0.00280128,3107.9,3107.3,2.58507522]
[1767458397821,2.7555002,3107.8,3107.3,0.00180152]
[1767458398138,0.00280128,3107.9,3107.3,2.58507522]
[1767458398649,2.7555002,3107.8,3107.3,0.00180152]
[1767458398810,0.00280128,3107.9,3107.4,2.5832737]
[1767458399010,0.00280128,3107.9,3107.4,5.80133019]
[1767458399232,2.75830148,3107.9,3107.4,3.21805649]
[1767458399439,0.00280128,3107.9,3107.5,2.5832737]
[1767458399939,0.00280128,3107.9,3107.4,3.21805649]
[1767458400111,0.00280128,3107.9,3107.4,5.80548243]
[1767458400754,0.00280128,3107.9,3107.5,2.58742594]
[1767458401259,0.00280128,3107.9,3107.5,5.8054285]
[1767458401419,0.00080112,3108.6,3108.1,2.58742594]
[1767458401846,2.58377114,3109.0,3108.3,2.58742594]
[1767458402670,0.0028012,3109.0,3108.3,2.58742594]
[1767458403128,0.0028012,3109.0,3108.4,9.02160428]
[1767458403320,0.0028012,3109.0,3108.5,2.58742594]
[1767458403944,0.0028012,3109.0,3108.4,4.20372972]
[1767458404149,0.0028012,3109.0,3108.4,3.21708917]
[1767458405151,0.0028012,3109.0,3108.4,2.58742594]
[1767458407567,0.0028012,3109.0,3108.5,5.80441162]
[1767458409024,0.0028012,3109.0,3108.5,3.21698568]
[1767458409221,2.58377114,3109.0,3108.5,3.21698568]
[1767458409424,2.58296994,3108.9,3108.2,6.43539356]
[1767458409625,2.58296994,3108.9,3108.3,0.98668195]
[1767458410041,2.58296994,3108.9,3108.4,0.001]
[1767458410824,0.002,3108.9,3108.4,2.58842594]
[1767458412558,0.002,3108.9,3108.6,2.58742594]
[1767458412939,0.002,3108.9,3108.5,3.21698568]
[1767458415157,0.002,3108.9,3108.4,3.21800583]
[1767458415468,2.84174705,3108.9,3108.4,3.21800583]
[1767458415670,2.84174705,3108.9,3108.4,0.001]
[1767458415671,2.58096994,3108.8,3108.4,0.001]
[1767458415850,2.58096994,3108.8,3107.7,0.00080112]
[1767458416052,0.0008012,3108.6,3107.8,2.58742594]
[1767458416368,0.25897831,3108.6,3107.8,2.58742594]
[1767458416538,2.58096994,3108.5,3108.0,3.21743946]
[1767458416744,0.25897831,3108.6,3108.0,3.21743946]
[1767458416943,0.0008012,3108.6,3108.0,3.21743946]
[1767458417355,2.58177114,3108.6,3107.7,0.00080112]
[1767458417555,2.58177114,3108.6,3107.7,2.58822706]
[1767458418055,2.58177114,3108.6,3107.8,2.58742594]
[1767458418253,0.0008012,3108.6,3107.8,2.58742594]
[1767458418455,0.64421637,3108.6,3107.8,2.58742594]
[1767458418869,2.58096994,3108.5,3107.7,0.00080112]
[1767458419349,2.58096994,3108.3,3107.7,0.00080112]
[1767458419534,2.58096994,3108.3,3108.1,0.001]
[1767458419930,2.58096994,3108.3,3107.7,0.00080112]
[1767458420353,3.21708917,3108.4,3107.7,0.00080112]
[1767458420354,5.79805911,3108.4,3107.7,0.00080112]
[1767458420556,2.58096994,3108.3,3107.7,0.00080112]
[1767458420864,2.58096994,3108.1,3107.7,0.00080112]
[1767458421069,0.57980591,3108.2,3107.7,0.00080112]
[1767458421441,3.16077585,3108.2,3107.7,0.00080112]
[1767458421653,0.57980591,3108.2,3107.7,0.00080112]
[1767458422068,3.16077585,3108.2,3107.7,0.00080112]
[1767458422364,0.57980591,3108.2,3107.7,0.00080112]
[1767458423168,0.57980591,3108.2,3107.7,2.58822706]
[1767458423376,3.21702454,3108.5,3107.8,2.58742594]
[1767458423873,3.21702454,3108.5,3107.7,0.00080112]
[1767458424056,5.79799448,3108.5,3107.7,0.00080112]
[1767458424259,0.57987957,3108.4,3107.7,2.58822706]
[1767458424487,0.57987957,3108.4,3107.9,2.58742594]
[1767458424653,0.57987957,3108.4,3107.8,3.21771027]
[1767458425051,0.57987957,3108.4,3107.8,5.80513621]
[1767458425482,3.16084951,3108.4,3107.8,3.21771027]
[1767458425787,0.57987957,3108.4,3107.9,2.58742594]
[1767458425990,0.57987957,3108.4,3107.8,6.43542054]
[1767458426289,3.21771533,3108.6,3107.9,2.58742594]
[1767458426586,0.0008012,3108.6,3108.0,5.80492915]
[1767458426753,2.58177114,3108.6,3108.0,3.21750321]
[1767458426956,0.0008012,3108.6,3108.0,3.21750321]
[1767458427277,2.58096994,3108.5,3108.0,3.21750321]
[1767458427474,0.25817711,3108.5,3107.9,5.80499132]
[1767458427669,0.0008012,3108.6,3107.9,5.80499132]
[1767458428074,2.58096994,3108.5,3107.9,3.21756538]
[1767458428269,0.0008012,3108.6,3107.9,5.80499132]
[1767458428583,2.58177114,3108.6,3108.0,0.001]
[1767458428881,2.58377114,3108.6,3108.0,0.001]
[1767458429184,0.25837711,3108.5,3108.0,2.58842594]
[1767458429378,2.58377114,3108.6,3108.0,0.001]
[1767458429578,0.0028012,3108.6,3108.0,0.001]
[1767458429786,0.0028012,3108.6,3108.0,2.58842594]
[1767458430885,2.68051611,3108.5,3108.0,0.001]
[1767458431462,2.68051611,3108.5,3107.7,3.2185709]
[1767458431688,0.26833173,3108.4,3107.7,3.2185709]
[1767458431998,6.16601097,3108.4,3107.7,0.00080112]
[1767458432190,3.48549486,3108.4,3107.7,2.76734479]
[1767458432366,3.21716313,3108.4,3107.7,2.76734479]
[1767458432686,2.68051611,3108.3,3107.7,0.00080112]
[1767458433187,6.43671079,3108.6,3107.8,3.21771027]
[1767458433375,2.68051611,3108.5,3107.8,3.21771027]
[1767458433576,9.1172269,3108.6,3107.8,5.98425394]
[1767458433778,0.91172269,3108.5,3107.8,5.98425394]
[1767458433967,2.68051611,3108.4,3107.8,3.21771027]
[1767458434170,0.91172269,3108.5,3107.8,3.21771027]
[1767458434686,3.5922388,3108.5,3107.8,3.21771027]
[1767458434989,3.21975551,3108.6,3107.8,3.21771027]
[1767458435387,3.21975551,3108.6,3107.7,2.76734479]
[1767458435388,2.68331731,3108.6,3107.7,2.76734479]
[1767458435563,0.0028012,3108.6,3107.7,2.76734479]
[1767458436775,0.0028012,3108.6,3107.9,2.76654367]
[1767458437274,2.68051611,3108.5,3107.8,3.21771027]
[1767458437475,0.0028012,3108.6,3107.8,5.98425394]
[1767458437688,0.0028012,3108.6,3107.9,2.76654367]
[1767458438092,2.68051611,3108.5,3107.8,3.21771027]
[1767458438272,0.0028012,3108.6,3107.9,2.76654367]
[1767458438789,4.13143739,3108.6,3108.0,2.76654367]
[1767458439284,0.002,3108.5,3107.9,3.21751945]
[1767458439794,0.002,3108.5,3108.0,2.76654367]
[1767458440888,0.002,3108.5,3108.2,2.76654367]
[1767458441088,0.0028012,3108.6,3108.4,2.76654367]
[1767458441283,0.0028012,3108.6,3108.1,9.20134305]
[1767458441597,0.0028012,3108.6,3108.3,2.76654367]
[1767458442597,0.0028012,3108.6,3108.2,0.92013431]
[1767458442598,0.0028012,3108.6,3108.0,5.98404329]
[1767458442802,2.68051611,3108.5,3107.7,3.21859302]
[1767458442987,2.68331731,3108.6,3107.8,2.76754367]
[1767458443180,2.68331731,3108.6,3107.8,0.001]
[1767458443380,2.94884784,3108.5,3107.8,0.001]
[1767458443775,2.98906016,3108.5,3107.8,0.001]
[1767458443974,2.98906016,3108.5,3107.7,0.00080112]
[1767458444175,2.94884784,3108.5,3107.7,0.00080112]
[1767458445074,9.11469445,3108.4,3107.7,0.00080112]
[1767458445275,2.68051611,3108.2,3107.7,0.00080112]
[1767458445793,0.93830262,3108.3,3107.7,0.00080112]
[1767458445998,2.68051611,3108.2,3107.7,0.00080112]
[1767458446202,3.21730409,3108.2,3107.7,0.00080112]
[1767458448004,2.68051611,3108.1,3107.7,0.00080112]
[1767458448205,3.21730409,3108.2,3107.7,0.00080112]
[1767458448408,0.41556067,3108.1,3107.7,0.00080112]
[1767458449295,3.09607678,3108.1,3107.7,0.00080112]
[1767458449495,3.63296522,3108.1,3107.7,0.00080112]
[1767458449704,2.68051611,3108.0,3107.7,0.00080112]
[1767458450003,3.63296522,3108.1,3107.7,0.00080112]
[1767458450306,0.36329652,3108.0,3107.7,0.00080112]
[1767458450501,3.04381263,3108.0,3107.6,0.001]
[1767458450687,0.36329652,3108.0,3107.6,0.001]
[1767458451077,3.04381263,3108.0,3107.6,0.001]
[1767458451275,0.36329652,3108.0,3107.6,0.001]
[1767458451475,2.68051611,3107.9,3107.6,0.001]
[1767458451909,3.58087832,3108.0,3107.6,0.001]
[1767458452079,2.68051611,3107.9,3107.6,0.001]
[1767458452282,2.68051611,3107.9,3107.5,0.00080136]
[1767458452475,3.58087832,3108.0,3107.5,0.00080136]
[1767458452892,3.57951089,3108.0,3107.5,0.00080136]
[1767458453098,3.0424452,3108.0,3107.5,0.00080136]
[1767458453410,0.36192909,3108.0,3107.5,0.00080136]
[1767458453609,3.63378311,3108.1,3107.5,0.00080136]
[1767458454411,6.31429922,3108.1,3107.5,0.00080136]
[1767458454581,3.63378311,3108.1,3107.5,2.76734503]
[1767458455106,2.68051611,3108.0,3107.5,3.21881621]
[1767458455307,3.63378311,3108.1,3107.5,5.98535988]
[1767458455610,0.41636179,3108.1,3107.5,3.21881621]
[1767458455784,0.00080112,3108.1,3107.6,2.76654367]
[1767458456490,0.00080112,3108.1,3107.5,3.21881621]
[1767458456693,0.00080112,3108.1,3107.5,5.98535988]
[1767458457080,2.68131723,3108.1,3107.5,3.21881621]
[1767458457298,3.21734418,3108.2,3107.7,0.0008012]
[1767458457503,3.94518842,3108.2,3107.7,0.0008012]
[1767458457685,6.62570453,3108.2,3107.7,0.0008012]
[1767458457985,3.94518842,3108.2,3107.7,0.0008012]
[1767458458186,2.68051611,3108.1,3107.7,0.0008012]
[1767458458496,3.94518842,3108.2,3107.7,0.0008012]
[1767458458898,6.62570453,3108.2,3107.7,0.0008012]
[1767458459094,3.94518842,3108.2,3107.7,0.0008012]
[1767458459816,3.94518842,3108.2,3107.7,2.63000003]
[1767458460015,6.7245489,3108.2,3107.7,0.0008012]
[1767458460314,3.94518842,3108.2,3107.7,0.0008012]
[1767458461218,2.77936048,3108.1,3107.7,0.0008012]
[1767458461510,3.21734418,3108.2,3107.8,2.62919883]
[1767458461887,3.21734418,3108.2,3107.7,0.0008012]
[1767458462081,3.21723051,3108.3,3107.7,0.0008012]
[1767458462294,0.002,3108.5,3107.7,2.63000003]
[1767458462494,0.002,3108.5,3107.9,2.62919883]
[1767458463697,0.002,3108.5,3108.1,2.62919883]
[1767458463896,0.002,3108.5,3108.0,3.21750321]
[1767458464102,0.002,3108.5,3108.0,5.84670204]
[1767458464312,3.21926951,3109.0,3108.4,2.62919883]
[1767458464531,5.99862999,3109.0,3108.1,2.62919883]